Cogmind - Beta 12 @@@ ROGUE MODE // 2024.02.01 @ 14:32:23 Player: puppuppit Result: Destroyed by S-10 Pest with Light Assault Rifle Performance ------------- Evolutions (1) 500 Regions Visited (6) 1200 Robots Destroyed (21) 105 Value Destroyed (413) 413 Prototype IDs (29) 580 Alien Tech Used (0) 0 Bonus (589) 589 TOTAL SCORE: 3387 Bonus ------- High Alert Combat Kills 11 Follower Combat Kills 278 Aligned with FarCom 300 Cogmind --------- Core Integrity 0/400 Matter 300/300 Energy 98/100 System Corruption 2% Temperature Cool (0) Movement Core (50) Location -8/Mines Parts ------- > --- POWER (1) -------- (None) > --- PROPULSION (4) --- (None) > --- UTILITY (2) ------ Core Shielding > --- WEAPON (2) ------- (None) > --- INVENTORY (5) ---- Small Storage Unit Medium Matter Pod (100) High-capacity Matter Pod (200) Latent Energy Streamer Assault Rifle Peak State ------------ > --- POWER ------------ Makeshift Power Source > --- PROPULSION ------- Improved Flight Unit Improved Flight Unit Improved Flight Unit Improved Flight Unit > --- UTILITY ---------- Small Storage Unit Shield Generator > --- WEAPON ----------- Improved Medium Laser Assault Rifle > --- INVENTORY -------- High-capacity Matter Pod ECM Suite Core Shielding Tractor Beam Assault Rifle Assault Rifle Stasis Trap Stasis Trap [Rating: 23] Favorites ----------- Power Makeshift Power Source Engine Makeshift Power Source Power Core Light Nuclear Core Propulsion Hover Unit Wheel Wheel Hover Unit Hover Unit Flight Unit Improved Flight Unit Utility Small Storage Unit Device Heat Sink Storage Small Storage Unit Protection Core Shielding Weapon Small Laser Energy Gun Small Laser Energy Cannon Light EM Pulse Cannon Ballistic Gun Light Assault Rifle Launcher Grenade Launcher Build | -11 -10 -10 -9 -9 -9 -8 ------- Run | Jun Mat Min Mat Min Exi Min Slots Evolved 2 | . . . 2 . . . Power . | . . . . . . . Propulsion 2 | . . . 2 . . . Utility . | . . . . . . . Weapon . | . . . . . . . Parts Attached 44 | 6 2 9 23 2 2 . Power 5 | 1 . 2 1 1 . . Engine 3 | 1 . 1 1 . . . Core 2 | . . 1 . 1 . . Reactor . | . . . . . . . Propulsion 19 | 2 2 2 13 . . . Treads . | . . . . . . . Leg . | . . . . . . . Wheel 2 | 2 . . . . . . Hover 12 | . 2 2 8 . . . Flight 5 | . . . 5 . . . Utility 8 | 1 . 2 3 1 1 . Device 5 | . . 2 2 1 . . Storage 1 | 1 . . . . . . Processor . | . . . . . . . Hackware . | . . . . . . . Protection 2 | . . . 1 . 1 . Artifact . | . . . . . . . Weapon 12 | 2 . 3 6 . 1 . Energy Gun 4 | 1 . 1 2 . . . Energy Cannon 1 | . . . 1 . . . Ballistic Gun 5 | 1 . 1 2 . 1 . Ballistic Cannon . | . . . . . . . Launcher 2 | . . 1 1 . . . Special Weapon . | . . . . . . . Impact Weapon . | . . . . . . . Slashing Weapon . | . . . . . . . Piercing Weapon . | . . . . . . . Special Melee Weapon . | . . . . . . . Unidentified Prototypes 1 | . . . 1 . . . Parts Lost 9 | . . 1 3 5 . . Power 1 | . . . 1 . . . Propulsion 6 | . . 1 1 4 . . Utility . | . . . . . . . Weapon 2 | . . . 1 1 . . Highest Loss Streak 5 | . . 1 2 5 . . To Critical Strikes . | . . . . . . . Average Slot Usage (%) 77 | . 85 95 95 84 8 . Engine 7 | . 14 12 7 2 . . Core 2 | . . 1 2 7 . . Wheel 1 | . 12 . . . . . Hover 22 | . 15 28 27 37 . . Flight 5 | . . . 14 . . . Device 6 | . . 9 9 8 . . Storage 9 | . 14 14 11 9 . . Protection 1 | . . . . . 8 . Energy Gun 8 | . 14 13 10 . . . Ballistic Gun 9 | . 14 14 10 9 . . Naked Turns 89 | . . . . 22 67 . Heaviest Build 17 | 12 12 13 17 17 3 1 Greatest Support 25 | 20 20 12 25 25 3 3 Greatest Overweight (x) 1 | . 1 1 1 . . . Average Overweight (x) . | . . . . . . . Largest Inventory Capacity 8 | 8 8 8 8 8 5 5 Average Capacity 7 | 6 8 8 8 7 5 5 Most Carried 8 | 2 7 8 8 8 5 5 Average Carried 6 | . 3 7 7 7 4 5 Final Capacity 8 | 8 8 8 8 5 5 5 Final Carried 8 | 2 7 8 8 5 5 5 Class Distribution -------------------- 68% | Mutant 19% | Scavenger-Mutant 11% | Sprinter Dominant Class ---------------- Mutant | -10/Materials Mutant | -10/Mines Sprinter | -9/Materials Scavenger-Mutant | -9/Mines Mutant | -9/Exiles Mutant | -8/Mines Resources | -11 -10 -10 -9 -9 -9 -8 ----------- Run | Jun Mat Min Mat Min Exi Min Matter Collected 1238 | 207 . 502 382 42 105 . Remotely 228 | . . 228 . . . . Salvage Created 776 | . . 151 438 187 . . Parts 53 | . . 14 30 9 . . Haulers Intercepted 3 | . . . 3 . . . Recyclers Shooed 1 | . . . 1 . . . Parts Field Recycled . | . . . . . . . Retrieved Matter . | . . . . . . . Parts Self-Destructed . | . . . . . . . Prevented . | . . . . . . . Kills | -11 -10 -10 -9 -9 -9 -8 ------- Run | Jun Mat Min Mat Min Exi Min Combat Hostiles Destroyed 11 | . . 5 4 2 . . Guns 8 | . . 4 4 . . . Cannons 2 | . . . . 2 . . AOE 1 | . . 1 . . . . Classes Destroyed 8 | . . 3 5 . . . Worker 3 | . . 2 1 . . . Hauler 3 | . . . 3 . . . Recycler 2 | . . . 1 1 . . Operator 1 | . . . 1 . . . Watcher 1 | . . . 1 . . . Swarmer 3 | . . 3 . . . . Grunt 6 | . . 2 2 2 . . Sentry 2 | . . . 2 . . . Best Kill Streak 4 | . . 4 4 3 . . Combat Bots Only 3 | . . 3 3 2 . . Max Kills in Single Turn 1 | . . 1 1 1 . . Gunslinging . | . . . . . . . Exploded 1 | . . 1 . . . . Melee . | . . . . . . . Uniques/NPCs Destroyed . | . . . . . . . Combat | -11 -10 -10 -9 -9 -9 -8 -------- Run | Jun Mat Min Mat Min Exi Min Damage Taken 1359 | . . 258 433 628 . 40 Core 478 | . . 75 91 277 . 35 Absorbed by Shields 42 | . . . 42 . . . Redirected to Shielding 7 | . . . 2 . . 5 Regen/Repaired (Parts) 76 | . . . 76 . . . Core Remaining (%) 85 | 100 . 70 . . . . Volleys Fired 90 | . 4 23 56 7 . . Largest 2 | . 2 2 2 2 . . Hottest 76 | . 60 60 76 76 . . Shots Fired 174 | . 8 45 107 14 . . Gun 163 | . 8 43 105 7 . . Cannon 7 | . . . . 7 . . Launcher 4 | . . 2 2 . . . Special . | . . . . . . . Kinetic 90 | . 4 23 56 7 . . Thermal 73 | . 4 20 49 . . . Explosive 4 | . . 2 2 . . . Electromagnetic 7 | . . . . 7 . . Robot Hit Streak 12 | . 2 6 12 4 . . Robot Miss Streak 6 | . 3 6 4 2 . . Penetration Max . | . . . . . . . Secondary Targets 3 | . . 2 1 . . . Max Gunslinging Chain 1 | . . 1 1 . . . Shots Hit Robots 101 | . 3 28 64 6 . . Core Hits 43 | . 2 11 25 5 . . Critical Kills . | . . . . . . . Critical Parts Destroyed . | . . . . . . . Critical Strikes . | . . . . . . . Melee Attacks . | . . . . . . . Impact . | . . . . . . . Slashing . | . . . . . . . Piercing . | . . . . . . . Sneak Attacks . | . . . . . . . Combat Hostiles . | . . . . . . . Follow-up Attacks . | . . . . . . . Damage Inflicted 1427 | . 27 334 957 109 . . Guns 1197 | . 27 250 896 24 . . Cannons 85 | . . . . 85 . . Explosions 145 | . . 84 61 . . . Melee . | . . . . . . . Ramming . | . . . . . . . Kinetic 587 | . 16 134 413 24 . . Thermal 610 | . 11 116 483 . . . Explosive 145 | . . 84 61 . . . Electromagnetic 85 | . . . . 85 . . Impact . | . . . . . . . Slashing . | . . . . . . . Piercing . | . . . . . . . Highest Corruption 2 | . . . . 2 2 2 Average Corruption 2 | . . . . 2 2 2 Corruption Purged . | . . . . . . . Corruption Blocked . | . . . . . . . Effects 3 | . . . . . 3 . Matter Fused 2 | . . . . . 2 . Energy Discharges 1 | . . . . . 1 . Overload Shots . | . . . . . . . Overflow Damage 3 | . . . 3 . . . Projectiles . | . . . . . . . Explosions 3 | . . . 3 . . . Melee . | . . . . . . . Knockbacks . | . . . . . . . Impact . | . . . . . . . Kinetic . | . . . . . . . Secondary . | . . . . . . . Self-Inflicted Damage . | . . . . . . . Shots . | . . . . . . . Rammed . | . . . . . . . Targets Rammed . | . . . . . . . Kicked . | . . . . . . . Crushed . | . . . . . . . Highest Temperature 220 | . 44 114 220 15 . . Average Temperature 54 | . 24 35 62 8 . . Received Heat Transfer 317 | . . 81 227 9 . . Effects 1 | . . . 1 . . . Interference 1 | . . . 1 . . . Siege Activations . | . . . . . . . Robots Corrupted . | . . . . . . . Combat Hostiles . | . . . . . . . Parts Fried . | . . . . . . . Impact Corruptions . | . . . . . . . Robots Melted . | . . . . . . . Combat Hostiles . | . . . . . . . Parts Melted 2 | . . . 2 . . . Heat Transferred 1325 | . 25 250 1050 . . . Parts Sabotaged . | . . . . . . . Parts Stolen . | . . . . . . . Parts Stripped . | . . . . . . . Power Chain Reactions . | . . . . . . . Missiles Intercepted . | . . . . . . . Alert | -11 -10 -10 -9 -9 -9 -8 ------- Run | Jun Mat Min Mat Min Exi Min Peak Influence 417 | . 20 215 417 160 . 15 Initial 87 | . . 7 19 87 . . Average 161 | . 5 118 249 141 . 7 Maximum Alert Level 2 | . . 1 2 . . . Low Security (%) 67 | 100 100 98 24 100 . 100 Level 1 27 | . . 1 64 . . . Level 2 4 | . . . 10 . . . Level 3 . | . . . . . . . Level 4 . | . . . . . . . Level 5 . | . . . . . . . High Security . | . . . . . . . Max Security . | . . . . . . . Squads Dispatched 3 | . 1 . 2 . . . Investigation . | . . . . . . . Extermination . | . . . . . . . Reinforcement 3 | . 1 . 2 . . . Assault . | . . . . . . . Garrison . | . . . . . . . Intercept . | . . . . . . . Searches Triggered . | . . . . . . . Construction Impeded . | . . . . . . . Haulers Reinforced . | . . . . . . . Active Scanning Responses . | . . . . . . . Cargo Convoy Interrupts . | . . . . . . . Stealth | -11 -10 -10 -9 -9 -9 -8 --------- Run | Jun Mat Min Mat Min Exi Min Distress Signals 1 | . . . 1 . . . Communications Jammed . | . . . . . . . Distress Signals . | . . . . . . . Times Spotted 57 | . 3 9 16 25 . 4 Peak Tracking Total 16 | . 3 3 5 16 . 4 Tactical Retreats 2 | . . 1 . 1 . . Traps | -11 -10 -10 -9 -9 -9 -8 ------- Run | Jun Mat Min Mat Min Exi Min Traps Triggered . | . . . . . . . Indirectly . | . . . . . . . Trap Hack Attempts . | . . . . . . . Triggered . | . . . . . . . Disarmed . | . . . . . . . Reprogrammed . | . . . . . . . Reused . | . . . . . . . Traps Extracted . | . . . . . . . Installed 2 | . . 2 . . . . Triggered . | . . . . . . . Most Traps Carried 2 | . . 2 2 2 1 . Machines | -11 -10 -10 -9 -9 -9 -8 ---------- Run | Jun Mat Min Mat Min Exi Min Machines Disabled 1 | . . . . 1 . . Max in Single Turn 1 | . . . . 1 . . Machines Repaired . | . . . . . . . Machines Sabotaged . | . . . . . . . Overloaded Fab Kills . | . . . . . . . Hacking | -11 -10 -10 -9 -9 -9 -8 --------- Run | Jun Mat Min Mat Min Exi Min Machines Accessed 11 | . 3 . 2 1 5 . Terminals 4 | . 3 . . 1 . . Fabricators . | . . . . . . . Repair Stations 1 | . . . 1 . . . Recycling Units . | . . . . . . . Scanalyzers 1 | . . . 1 . . . Garrison Access . | . . . . . . . Total Hacks 83 | . 10 . 22 1 50 . Successful 73 | . 4 . 18 1 50 . Failed 10 | . 6 . 4 . . . Catastrophic 2 | . 2 . . . . . Database Lockouts . | . . . . . . . Manual 7 | . 4 . . 2 1 . Terminals 11 | . 10 . . 1 . . Fabricators . | . . . . . . . Repair Stations 9 | . . . 9 . . . Recycling Units . | . . . . . . . Scanalyzers 13 | . . . 13 . . . Garrison Access . | . . . . . . . Terminal Hacks 55 | . 4 . . 1 50 . Record 49 | . . . . . 49 . Robot Analysis 2 | . 1 . . 1 . . Prototype ID Bank 3 | . 3 . . . . . EX-Prototype ID Bank 1 | . . . . . 1 . Fabricator Hacks . | . . . . . . . Repair Station Hacks 6 | . . . 6 . . . Scan Component 3 | . . . 3 . . . Repair 3 | . . . 3 . . . Recycling Unit Hacks . | . . . . . . . Scanalyzer 12 | . . . 12 . . . Insert Component 6 | . . . 6 . . . Analyze 6 | . . . 6 . . . Garrison Access Hacks . | . . . . . . . Unauthorized Hacks . | . . . . . . . Terminals . | . . . . . . . Fabricators . | . . . . . . . Repair Stations . | . . . . . . . Recycling Units . | . . . . . . . Scanalyzers . | . . . . . . . Garrison Access . | . . . . . . . Data Cores Recovered . | . . . . . . . Used . | . . . . . . . Hacking Detections 6 | . 3 . 2 1 . . Full Trace Events 3 | . 3 . . . . . Feedback Events . | . . . . . . . Feedback Blocked . | . . . . . . . Robot Schematics Acquired . | . . . . . . . Robots Built . | . . . . . . . Authchips . | . . . . . . . Time . | . . . . . . . Total Robot Build Rating . | . . . . . . . Part Schematics Acquired 5 | . . . 5 . . . Parts Built . | . . . . . . . Authchips . | . . . . . . . Time . | . . . . . . . Total Part Build Rating . | . . . . . . . Parts Repaired 3 | . . . 3 . . . Time 78 | . . . 78 . . . Parts Recycled . | . . . . . . . Recycled Matter . | . . . . . . . Retrieved Matter . | . . . . . . . Retrieved Components . | . . . . . . . Parts Scanalyzed 5 | . . . 5 . . . Part Schematics Acquired 5 | . . . 5 . . . Parts Damaged . | . . . . . . . Bothacking | -11 -10 -10 -9 -9 -9 -8 ------------ Run | Jun Mat Min Mat Min Exi Min Used RIF Installer . | . . . . . . . Robots Hacked . | . . . . . . . Non-combat . | . . . . . . . Combat . | . . . . . . . Robot Hacks Applied . | . . . . . . . Relay Couplers Released . | . . . . . . . Fabnet Peak Effective % . | . . . . . . . Robots Rewired . | . . . . . . . Allies Hacked . | . . . . . . . Hacks Repelled . | . . . . . . . Allies | -11 -10 -10 -9 -9 -9 -8 -------- Run | Jun Mat Min Mat Min Exi Min Total Allies 3 | . . 3 . . . . Largest Group 3 | . . 3 3 1 . . Highest-Rated Group 73 | . . 73 73 31 . . Highest-Rated Ally 31 | . . 31 31 31 . . Total Orders . | . . . . . . . Ally Attacks 36 | . . 5 29 2 . . Total Damage 634 | . . 105 489 40 . . Kills 10 | . . 2 8 . . . Allies Corrupted . | . . . . . . . Allies Melted . | . . . . . . . Intel | -11 -10 -10 -9 -9 -9 -8 ------- Run | Jun Mat Min Mat Min Exi Min Robot Analysis Total 2 | . 1 . . 1 . . Derelict Logs Recovered 2 | . . 2 . . . . Drone Launches . | . . . . . . . Drone Recoveries . | . . . . . . . Exploration | -11 -10 -10 -9 -9 -9 -8 ------------- Run | Jun Mat Min Mat Min Exi Min Turns Passed 1632 | 41 132 450 565 157 285 2 Spaces Moved 2244 | 39 162 605 622 262 550 4 Core 601 | 2 . . . 45 550 4 Treads . | . . . . . . . Legs . | . . . . . . . Wheels 115 | 37 78 . . . . . Hover 1276 | . 84 605 370 217 . . Flight 252 | . . . 252 . . . Fastest Speed 31 | 50 56 56 31 48 50 50 Average Speed 51 | 78 67 56 41 48 50 50 Slowest Speed 120 | 80 120 116 116 56 50 50 Overloaded Moves . | . . . . . . . Propulsion Burnouts . | . . . . . . . Robots Hopped . | . . . . . . . Cave-ins Triggered . | . . . . . . . Exploration Rate (%) 45 | 3 38 99 37 49 91 3 Regions Visited 6 Branch Regions 4 Pre-discovered Areas 2 | . . 1 . . 1 . Known Exits Taken . | . . . . . . . Unknown Exits Taken 6 | 1 1 1 1 1 1 . Scrap Searched 4 | . . 3 . 1 . . Spaces Dug . | . . . . . . . Terrain Destroyed 30 | . . 12 18 . . . Melee . | . . . . . . . Projectile . | . . . . . . . AOE 30 | . . 12 18 . . . Terrain Rammed . | . . . . . . . Walls Destroyed . | . . . . . . . Machines Disabled . | . . . . . . . Actions | -11 -10 -10 -9 -9 -9 -8 --------- Run | Jun Mat Min Mat Min Exi Min Total 2558 | 46 177 671 819 280 561 4 Wait 125 | . 1 20 101 3 . . Move 2238 | 38 161 604 621 261 549 4 Hop . | . . . . . . . Pick Up 19 | 2 5 4 3 . 5 . Fast Attach 28 | 6 2 4 15 1 . . Attach 7 | . . 1 4 . 2 . Detach 10 | . 2 2 4 1 1 . Swap 9 | . . 4 4 1 . . Drop 30 | . 2 7 11 6 4 . Fire 90 | . 4 23 56 7 . . Melee . | . . . . . . . Ram . | . . . . . . . Kick . | . . . . . . . Crush . | . . . . . . . Escape Stasis . | . . . . . . . Rewire . | . . . . . . . Trap 2 | . . 2 . . . . Miscellaneous . | . . . . . . . Route ------- -11/Junkyard -10/Materials -10/Mines (discovered 2 exits: *Mat x2) -9/Materials -9/Mines (discovered 2 exits: [*Mat] / *Exi) -9/Exiles -8/Mines History --------- Turn | Location | Event 21 | -11/Junkyard | Discovered new exit (range 15) 42 | -11/Junkyard | Entered Materials 168 | -10/Materials | Discovered new exit (range 6) 174 | -10/Materials | Entered Mines 312 | -10/Mines | Build established: Mutant 368 | -10/Mines | Learned location of Storage (-7) 369 | -10/Mines | Received a Mining Laser from a helpful Derelict 370 | -10/Mines | Discovered new exit (range 4) 427 | -10/Mines | Learned Materials stockpile data 451 | -10/Mines | Discovered new exit (range 9) 463 | -10/Mines | Found a hidden stash of uninstalled traps 624 | -10/Mines | Entered Materials 624 | -9/Materials | Accompanied by 3 allies 624 | -9/Materials | Evolved 2 slots: Propulsion x2 631 | -9/Materials | Led the pair of lost Derelicts to an unsafe place 1064 | -9/Materials | Repaired Hover Unit 1091 | -9/Materials | Repaired Assault Rifle 1119 | -9/Materials | Repaired Hover Unit 1160 | -9/Materials | Discovered new exit (range 13) 1189 | -9/Materials | Entered Mines 1189 | -9/Mines | Accompanied by 1 ally 1234 | -9/Mines | Discovered new exit (range 11) 1268 | -9/Mines | Assembled infested the area 1295 | -9/Mines | Build established: Scavenger-Mutant 1324 | -9/Mines | Core integrity fell below 50% 1331 | -9/Mines | Core integrity fell below 20% 1344 | -9/Mines | Deemed a non-threat by the Exiles lab entrance 1344 | -9/Mines | Discovered new exit (range 5) 1346 | -9/Mines | Entered Exiles 1354 | -9/Exiles | Lost 5 parts (4n1w) 1359 | -9/Exiles | Met 8R-AWN 1367 | -9/Exiles | Met EX-HEX 1381 | -9/Exiles | Met EX-BIN 1388 | -9/Exiles | Aligned with FarCom system 1389 | -9/Exiles | Given EX-Vault access code 1409 | -9/Exiles | Opened EX-Vault 1415 | -9/Exiles | Found Latent Energy Streamer 1427 | -9/Exiles | Warned to stay clear of 0b10 Research branches 1442 | -9/Exiles | Met EX-DEC 1447 | -9/Exiles | Learned location of Zion (-7) 1468 | -9/Exiles | Visited The Gauntlet 1619 | -9/Exiles | Build established: Mutant 1626 | -9/Exiles | Discovered new exit (range 12) 1631 | -9/Exiles | Left Exiles lab with Latent Energy Streamer 1631 | -9/Exiles | Entered Mines 1633 | -8/Mines | Destroyed by S-10 Pest with Light Assault Rifle Last Messages --------------- AM-PHS: That's RA-1N3's workstation, which we keep unoccupied as a tribute. RA-1N3 was always up for doing crazy stuff, the only one brave enough to try out the Chronowheel, only to never be seen again. 01491_ System corrupted: Matter fused (-6). 01574_ Dropped Imp. Medium Laser. 01574_ Acquired Sml. Storage Unit. 01576_ System corrupted: Matter fused (-9). 01576_ Dropped Hcp. Matter Pod. 01577_ Extracted 35 matter. 01578_ Acquired Lrg. Matter Pod. 01585_ Dropped Stasis Trap. 01590_ Acquired Hcp. Matter Pod. 01595_ Extracted 35 matter. 01598_ Dropped Lrg. Matter Pod. 01599_ Acquired Med. Matter Pod. 01600_ Extracted 35 matter. 01626_ EXIT=FOUND LOCATION=UNKNOWN GOAL=ESCAPE 01631_ Receiving FarCom transmissions... Map ----- +----------------------------------------------------+ | ?????????????????????????????????????????????????? | | ?????????????????????????????????????????????????? | | ?????????????????????????????????????????????????? | | ?????????????????????????????????????????????????? | | ?????????????????????????????????????????????????? | | ?????????????????????????????????????????????????? | | ?????????????????????????????????????????????????? | | ?????????????????????????????????????????????????? | | ?????????????????????????????????????????????????? | | ?????????????????????????????????????????????????? | | ?????????????????????????????????????????????????? | | ?????????????????????????????????????????????????? | | ?????????????????????????????????????????????????? | | ?????????????????????????????????????????????????? | | ?????????????????????????????????????????????????? | | ?????????????????????????????????????????????????? | | ??????????????????????????##?????????????????????? | | ?????????????????????????? ?????????????????????? | | ?????????????????????????? ?????????????????????? | | ?????????????????????????? ??????????????????????? | | ?????????????????????????? ??????????????????????? | | ????????????????????????## ??????????????????????? | | ???????????????????????? ??????????????????????? | | ????????????????????????# #??????????????????????? | | ????????????????????????# ###????????????????????? | | ???????????????????????##@ ##???????????????????? | | ???????????????????????# ##??????????????????? | | ??????????????????????## s##?????????????????? | | ?????????????????????## ss #?????????????????? | | ?????????????????????# s #?????????????????? | | ?????????????????????# ## ##?????????????????? | | ?????????????????????## ##?###??????????????????? | | ??????????????????????###????????????????????????? | | ?????????????????????????????????????????????????? | | | | | | | | | | | | | | | | | | | | | | | | | | | | | | | | | +----------------------------------------------------+ Best States ------------- Heat Dissipation 42 Energy Generation 15 Energy Capacity 250 Matter Stores 300 Matter Capacity 300 Sight Range 16 Terrain Scan Density 10 ECM Strength 1 Core Shielding 20 Evasion (%) 63 Item Schematics ----------------- Imp. Flight Unit | -9/Materials | Scanalyzed Shield Generator | -9/Materials | Scanalyzed Core Shielding | -9/Materials | Scanalyzed ECM Suite | -9/Materials | Scanalyzed Assault Rifle | -9/Materials | Scanalyzed Robot Schematics ------------------ None Fabricated ------------ Nothing Alien Tech Used ----------------- None Achievements -------------- None Challenges ------------ None Game ------ Seed CloakingEtherialSpoofer Manual? 0 Play Time 00:24:13 Cumulative 92.5 hours Start 2024.02.01 @ 14:08:21 End 2024.02.01 @ 14:32:23 Sessions 1 Manual Loads 0 Difficulty Rogue Special Mode None Game No. 56 Rogue 56 Adventurer 0 Explorer 0 Win Type - Total 0 Types 0/0/0/0/0/0/0/0/0 Lore% 56 Gallery% 56 Achievement% 48 Wizard Run 0 Options --------- ASCII 0 Keyboard 1 Movement Arrows Keybinds 0 Fullscreen 1 Font 12/Proggy Map View 83x54 Tactical HUD 1 Map Filters NONE Filters NONE Steam 0 RUN: 02654512-8115-4234-874e-718700cd8d36